bitfinex-derivatives/quotes_BNBF0:USTF0_20250309
["timestamp","ask_amount","ask_price","bid_price","bid_amount"]
[1741513592398,0.31446235,585.02,583.86,0.28658748]
[1741513592597,0.31446235,585.01,583.86,0.28658748]
[1741513592796,0.29780242,585.02,583.86,0.28658748]
[1741513593001,0.31446235,585.01,583.86,0.28658748]
[1741513593198,0.31446235,585.01,583.87,0.342542]
[1741513593402,0.31446235,585.01,583.88,0.28658748]
[1741513594404,0.29780242,585.02,583.87,0.342542]
[1741513594705,0.31444057,585.01,583.88,0.28656286]
[1741513595102,0.31444057,585.0,583.88,0.28656286]
[1741513598005,0.61223917,584.99,583.88,0.28656286]
[1741513598206,0.31444057,584.98,583.88,0.28656286]
[1741513600909,1.27865714,585.04,583.87,0.342542]
[1741513601108,0.29780115,584.97,583.88,0.28646948]
[1741513601309,0.31444959,584.96,583.88,0.28646948]
[1741513601509,0.31444959,584.95,583.88,0.28646948]
[1741513601710,0.31444959,584.94,583.88,0.28646948]
[1741513601907,0.31444959,585.01,583.88,0.28646948]
[1741513602108,0.31444959,585.0,583.88,0.28646948]
[1741513602304,0.29779733,584.93,583.88,0.28646948]
[1741513602512,0.31444959,584.92,583.88,0.28646948]
[1741513602706,0.31444959,584.91,583.88,0.28646948]
[1741513602906,0.31444959,584.9,583.88,0.28646948]
[1741513603205,0.31444959,584.89,583.88,0.28646948]
[1741513603404,0.31444959,584.88,583.88,0.28646948]
[1741513603606,1.27865714,584.97,583.88,0.28646948]
[1741513603809,0.31444959,584.96,583.88,0.28646948]
[1741513604111,0.61225329,584.96,583.88,0.28646948]
[1741513604310,0.31444959,584.95,583.88,0.28646948]
[1741513604612,0.3144415,584.94,583.89,0.28649706]
[1741513604911,0.3144415,584.93,583.9,0.28649706]
[1741513605106,0.3144415,584.95,583.88,0.28649706]
[1741513605414,0.3144415,584.94,583.89,0.62902733]
[1741513605606,0.2978037,584.96,583.83,0.2978037]
[1741513605607,0.3144415,584.95,583.9,0.62902146]
[1741513605806,0.2978037,584.96,583.91,0.28649706]
[1741513606311,0.2978037,584.96,583.92,0.34251267]
[1741513607912,0.31441563,584.94,583.92,0.34251267]
[1741513608113,0.2978037,584.96,583.93,0.28649706]
[1741513608416,0.2978037,584.96,583.94,0.34250094]
[1741513608614,0.2978037,584.96,583.95,0.28649706]
[1741513608814,0.2978037,584.96,583.96,0.34248921]
[1741513609015,0.2978037,584.96,583.97,0.28649706]
[1741513609215,0.2978037,584.96,583.98,0.34247748]
[1741513609412,0.2978037,584.96,583.99,0.28649706]
[1741513609610,0.2978037,584.96,584.0,0.34246575]
[1741513609814,0.34185112,585.05,584.01,0.28649706]
[1741513610014,0.31438796,585.04,584.02,0.34245402]
[1741513610213,0.2977349,584.95,584.03,0.28649706]
[1741513610413,0.34185112,585.05,584.04,0.34244229]
[1741513610612,0.31439585,585.04,584.05,0.28649706]
[1741513611321,0.29774127,585.03,584.05,0.28649706]
[1741513611523,0.31439585,585.02,584.05,0.28649706]
[1741513611722,0.31440484,585.01,584.06,0.28635939]
[1741513611922,0.31440484,585.02,584.05,0.28635939]
[1741513612220,0.31440484,585.01,584.06,0.28635939]
[1741513612421,0.31440484,585.02,584.05,0.28635939]
[1741513613523,0.29774127,585.03,584.04,0.34244229]
[1741513613722,0.31440272,585.01,584.06,0.28635934]
[1741513613923,0.31440272,585.0,584.07,0.28635934]
[1741513614123,0.31440272,585.02,584.05,0.28635934]
[1741513614324,0.29774127,585.03,584.06,0.28635934]
[1741513614521,0.31439984,585.02,584.05,0.28635934]
[1741513614823,0.31439984,585.02,584.06,0.28635934]
[1741513615022,0.31439984,585.02,584.05,0.28635934]
[1741513615223,0.31439984,585.02,584.06,0.28635934]
[1741513615523,0.31439984,585.02,584.07,0.28635934]
[1741513615723,0.31439984,585.02,584.08,0.28635934]
[1741513615923,0.31439984,585.02,584.05,0.28635934]
[1741513616126,0.61214366,585.01,584.06,0.28635934]
[1741513616325,0.61214366,585.01,584.04,0.34244229]
[1741513616326,0.31439984,585.0,584.07,0.28635934]
[1741513616619,0.31439984,585.0,584.08,0.28635934]
[1741513616826,0.31439984,585.0,584.05,0.28635934]
[1741513617020,0.31439984,585.0,584.06,0.28635934]
[1741513617227,0.31439984,585.0,584.05,0.28635934]
[1741513617420,0.31439984,585.0,584.07,0.28635934]
[1741513617624,0.31439984,585.0,584.08,0.28635934]
[1741513617824,0.31439984,585.0,584.05,0.28635934]
[1741513619027,0.31439984,585.04,584.05,0.28635934]
[1741513619228,0.31439984,585.03,584.05,0.28635934]
[1741513619428,0.31439984,585.04,584.05,0.28635934]
[1741513619620,0.31439984,585.03,584.05,0.28635934]
[1741513619820,0.31439984,585.04,584.05,0.28635934]
[1741513620026,0.29775401,585.03,584.05,0.28635934]
[1741513620222,0.31439984,585.02,584.05,0.28635934]
[1741513620729,0.31440527,585.01,584.06,0.2862246]
[1741513620928,0.31440527,585.0,584.07,0.2862246]
[1741513621229,0.31440527,584.99,584.08,0.2862246]
[1741513621529,0.31440527,584.98,584.09,0.2862246]
[1741513621725,0.31440527,585.02,584.1,0.2862246]
[1741513621926,0.31440527,585.01,584.11,0.2862246]
[1741513622123,0.31440527,585.04,584.05,0.2862246]
[1741513622428,0.34185112,585.05,584.04,0.34244229]
[1741513622429,0.31440527,585.03,584.04,0.34244229]
[1741513622624,0.31440527,585.04,584.05,0.28619617]
[1741513622830,0.31440527,585.04,584.04,0.34244229]
[1741513623032,0.29775401,585.03,584.04,0.34244229]
[1741513623330,0.31440527,585.02,584.04,0.34244229]
[1741513625231,0.61217839,585.01,584.04,0.34244229]
[1741513625431,0.31440527,585.0,584.04,0.34244229]
[1741513630231,0.31440527,585.0,584.05,0.2860723]
[1741513632130,0.29777312,585.01,584.04,0.34244229]
[1741513632830,1.27865714,584.97,584.04,0.34244229]
[1741513635136,0.29784448,584.96,584.04,0.34244229]
[1741513635342,0.61232996,584.96,584.04,0.34244229]
[1741513635540,0.31448548,584.95,584.04,0.34244229]
[1741513637141,0.31448548,585.04,584.04,0.34244229]
[1741513637332,0.29789802,584.94,584.04,0.34244229]
[1741513637537,0.31448548,584.93,584.04,0.34244229]
[1741513637737,0.31448548,585.04,584.04,0.34244229]
[1741513637939,0.31448548,585.03,583.72,0.29789802]
[1741513638241,1.27865714,585.01,583.73,0.2864793]
[1741513638442,0.31454004,585.0,583.73,0.2864793]
[1741513640036,0.29789292,584.99,583.46,0.2864793]
[1741513640338,0.31454004,584.98,583.68,0.29789292]
[1741513640542,0.31454004,584.98,583.69,0.62912693]
[1741513640844,0.31454004,584.98,583.7,0.2864793]
[1741513641336,0.34189787,584.97,583.7,0.2864793]
[1741513641538,0.31454004,584.96,583.7,0.2864793]
[1741513641734,0.31456253,584.95,583.71,0.28652132]
[1741513641942,0.31456253,584.94,583.72,0.28652132]
[1741513642243,0.31456253,584.93,583.73,0.28652132]
[1741513642543,0.31456253,584.93,583.69,0.34264763]
[1741513642544,1.59321967,584.92,583.74,0.28652132]
[1741513642743,0.31456253,584.91,583.75,0.28652132]
[1741513642943,0.31456253,584.91,583.7,0.28652132]
[1741513643136,0.31456253,584.91,583.71,0.28652132]
[1741513643340,0.31456253,584.91,583.7,0.28652132]
[1741513643542,0.31456253,584.91,583.71,0.28652132]
[1741513643840,0.31456253,584.91,583.72,0.28652132]
[1741513644041,0.31456253,584.91,583.7,0.28652132]
[1741513644237,0.31456253,584.91,583.71,0.28652132]
[1741513644441,0.31456253,584.91,583.72,0.28652132]
[1741513644638,0.31456253,584.91,583.7,0.28652132]
[1741513644835,0.31456253,584.91,583.71,0.28652132]
[1741513645035,0.31456253,584.96,583.71,0.28652132]
[1741513645238,0.34190956,584.95,583.72,0.28652132]
[1741513645441,0.31455731,584.94,583.73,0.2865203]
[1741513645641,0.31455731,584.94,583.7,0.2865203]
[1741513645844,0.34192125,584.93,583.71,0.2865203]
[1741513646042,0.31455731,584.92,583.7,0.2865203]
[1741513646239,0.31455731,584.92,583.71,0.2865203]
[1741513646544,0.31455731,584.92,583.72,0.2865203]
[1741513646745,0.31455731,584.92,583.73,0.2865203]
[1741513647045,0.29788272,584.91,583.74,0.2865203]
[1741513647247,0.31455731,584.9,583.7,0.2865203]
[1741513647544,0.31455731,584.9,583.71,0.2865203]
[1741513647745,0.31455731,584.9,583.7,0.2865203]
[1741513648047,0.31455731,584.9,583.71,0.2865203]
[1741513648242,0.31455731,584.9,583.7,0.2865203]
[1741513648448,0.31455731,584.9,583.71,0.2865203]
[1741513648645,0.31455731,584.9,583.72,0.2865203]
[1741513648949,0.31455731,584.9,583.73,0.62914445]
[1741513649154,0.31455731,584.91,583.74,0.2865203]
[1741513649544,0.3419271,584.92,583.73,0.34262415]
[1741513649741,0.3145183,584.91,583.74,0.28657074]
[1741513650149,0.61242907,584.91,583.74,0.28657074]
[1741513650353,0.3145183,584.9,583.74,0.28657074]
[1741513652151,0.3145183,584.91,583.74,0.28657074]
[1741513652350,0.3419271,584.92,583.73,0.34262415]
[1741513652553,0.31451123,584.91,583.74,0.28657731]
[1741513653149,0.2978636,584.9,583.74,0.28657731]
[1741513653354,0.31451123,584.89,583.74,0.28657731]
[1741513654557,0.2978636,584.9,583.73,0.34262415]
[1741513654750,0.31456424,584.89,583.74,0.28670665]
[1741513655155,0.31456424,584.88,583.74,0.28670665]
[1741513655352,0.31456424,584.91,583.74,0.28670665]
[1741513655955,0.29790185,584.9,583.74,0.28670665]
[1741513656155,0.29790185,584.9,583.73,0.34262415]
[1741513656354,0.31456424,584.89,583.73,0.34262415]
[1741513658160,0.31456424,584.88,583.73,0.34262415]
[1741513658362,0.31456424,584.87,583.73,0.34262415]
[1741513658556,0.31456424,584.86,583.73,0.34262415]
[1741513658759,0.298046,584.86,583.73,0.34262415]
[1741513658957,0.31456424,584.85,583.73,0.34262415]
[1741513659757,0.34197387,584.84,583.73,0.34262415]
[1741513659962,0.31456424,584.83,583.73,0.34262415]
[1741513660155,0.34198556,584.82,583.73,0.34262415]
[1741513660563,0.31456424,584.81,583.73,0.34262415]
[1741513660864,0.34199726,584.8,583.73,0.34262415]
[1741513661063,0.31456424,584.79,583.73,0.34262415]
[1741513662666,0.34199726,584.8,583.73,0.34262415]
[1741513662863,0.3146627,584.79,583.73,0.34262415]
[1741513663369,0.31466447,584.78,583.73,0.34262415]
[1741513663563,0.3420148,584.77,583.73,0.34262415]
[1741513663762,0.31466447,584.76,583.73,0.34262415]
[1741513664366,0.29806387,584.75,583.73,0.34262415]
[1741513664570,0.31466447,584.74,583.73,0.34262415]
[1741513665471,0.3420382,584.73,583.73,0.34262415]
[1741513665668,0.31466447,584.72,583.73,0.34262415]
[1741513665870,0.3420382,584.73,583.73,0.34262415]
[1741513665871,0.31466651,584.71,583.73,0.34262415]
[1741513666074,0.31466651,584.72,583.73,0.34262415]
[1741513666273,0.31466651,584.71,583.73,0.34262415]
[1741513667070,0.61266458,584.7,583.73,0.34262415]
[1741513667266,0.31467218,584.69,583.73,0.34262415]
[1741513668067,0.31467218,584.69,583.44,0.2979924]
[1741513668975,0.34206745,584.68,583.44,0.2979924]
[1741513669772,0.34206745,584.68,582.94,1.27888907]
[1741513670077,0.29807025,584.67,583.4,0.29807025]
[1741513670277,0.29807025,584.67,583.41,0.34281208]
[1741513671077,0.31467218,584.66,583.41,0.34281208]
[1741513671274,0.31467218,584.66,583.42,0.2867351]
[1741513671472,0.31467218,584.66,583.43,0.34280033]
[1741513671676,0.31467218,584.66,583.44,0.2867351]
[1741513672977,0.31467218,584.67,583.44,0.2867351]
[1741513673278,0.31467218,584.66,583.44,0.2867351]
[1741513673579,0.31467218,584.65,583.44,0.2867351]
[1741513673874,0.31467218,584.64,583.44,0.2867351]
[1741513674172,0.29797454,584.64,583.45,0.34278858]
[1741513674379,0.29797454,584.64,583.46,0.2867351]
[1741513674577,0.29797454,584.64,583.47,0.34277683]
[1741513674779,0.29797454,584.64,583.48,0.2867351]
[1741513674973,0.29797454,584.64,583.49,0.34276508]
[1741513675478,0.29797454,584.64,583.5,0.28659136]
[1741513677481,0.29797454,584.64,583.49,0.34276508]
[1741513677780,0.29797454,584.64,583.5,0.28652947]
[1741513678177,0.29797454,584.64,583.49,0.34276508]
[1741513678679,0.31466284,584.63,583.5,0.28656764]
[1741513679080,0.61266418,584.62,583.5,0.28656764]
[1741513679281,0.29800134,584.62,583.5,0.28656764]
[1741513679682,0.31466038,584.61,583.5,0.28656764]
[1741513683284,0.29800134,584.62,583.49,0.34276508]
[1741513683583,0.31467811,584.61,583.5,0.28658483]
[1741513684983,0.61266286,584.6,583.5,0.28658483]
[1741513685187,0.29798475,584.6,583.49,0.34276508]
[1741513685484,0.31464132,584.59,583.5,0.28648261]
[1741513687888,0.31464132,584.59,583.51,0.34275333]
[1741513688086,0.29797327,584.58,583.52,0.28648261]
[1741513688289,0.29797327,584.58,583.53,0.34274158]
[1741513688491,0.29797327,584.58,583.54,0.28648261]
[1741513688686,0.31460239,584.57,583.55,0.28638567]
[1741513689087,0.31460239,584.57,583.56,0.28638567]
[1741513689285,0.31460239,584.57,583.57,0.34271809]
[1741513689485,0.31460239,584.57,583.57,0.62910376]
[1741513689690,0.31460239,584.57,583.58,0.28638567]
[1741513691091,0.61257056,584.56,583.58,0.28638567]
[1741513691292,0.29796817,584.56,583.58,0.28638567]
[1741513691791,0.31461207,584.55,583.58,0.28638567]
[1741513694092,0.31461327,584.54,583.59,0.28651123]
[1741513694289,0.29795541,584.54,583.59,0.28651123]
[1741513694491,0.29795541,584.54,583.6,0.28651123]
[1741513694687,0.29795541,584.54,583.58,0.28651123]
[1741513694887,0.31461118,584.53,583.59,0.28651123]
[1741513695091,0.31461118,584.53,583.6,0.28651123]
[1741513695292,0.31461118,584.53,583.61,0.28651123]
[1741513695486,0.31461118,584.53,583.62,0.28651123]
[1741513695689,0.31461118,584.53,583.58,0.28651123]
[1741513695993,0.29795541,584.54,583.59,0.28650107]
[1741513696195,0.29795541,584.54,583.58,0.28650107]
[1741513696394,0.29795541,584.54,583.59,0.28650107]
[1741513696587,0.29795541,584.54,583.58,0.28650107]
[1741513696788,0.29795541,584.54,583.59,0.28650107]
[1741513696993,0.34206745,584.68,583.58,0.28650107]
[1741513697194,0.31460263,584.67,583.59,0.28650107]
[1741513697394,0.31460263,584.67,583.58,0.28650107]
[1741513697592,0.31460263,584.67,583.59,0.28650107]
[1741513697792,0.31460263,584.67,583.57,0.34271809]
[1741513697793,0.31460263,584.67,583.58,0.28650107]
[1741513697991,0.29796306,584.66,583.59,0.28650107]
[1741513698190,0.31460263,584.65,583.58,0.28650107]
[1741513698389,0.31460263,584.65,583.59,0.28650107]
[1741513698591,0.31460263,584.65,583.6,0.28650107]
[1741513698792,0.31460263,584.65,583.58,0.28650107]
[1741513699093,0.31460263,584.65,583.59,0.28650107]
[1741513699294,0.31460263,584.65,583.6,0.28650107]
[1741513699589,0.31460598,584.64,583.61,0.28649625]
[1741513699895,0.31460598,584.63,583.62,0.28649625]
[1741513700095,0.31460598,584.67,583.58,0.28649625]
[1741513700990,0.29796306,584.66,583.58,0.28649625]
[1741513701192,0.31460598,584.65,583.58,0.28649625]
[1741513704200,0.31461596,584.64,583.59,0.28649038]
[1741513704396,0.31461596,584.65,583.58,0.28649038]
[1741513704596,0.31461596,584.64,583.59,0.28649038]
[1741513704800,0.31461596,584.65,583.58,0.28649038]
[1741513705003,0.31461596,584.63,583.6,0.28649038]
[1741513705201,0.31461596,584.62,583.61,0.28649038]
[1741513705402,0.31461596,584.65,583.58,0.28649038]
[1741513705701,0.31461596,584.64,583.59,0.28649038]
[1741513706094,0.31461596,584.63,583.6,0.28649038]
[1741513706297,0.31461596,584.66,583.58,0.28649038]
[1741513706501,0.31461596,584.65,583.59,0.28649038]
[1741513706701,0.31461794,584.64,583.6,0.28648953]
[1741513706898,0.31461794,584.66,583.58,0.28648953]
[1741513707103,0.29796434,584.64,583.58,0.28648953]
[1741513707303,0.31461794,584.63,583.58,0.28648953]
[1741513708400,0.31461672,584.62,583.59,0.28648034]
[1741513708603,0.29796434,584.64,583.6,0.28648034]
[1741513708604,0.31461672,584.61,583.6,0.28648034]
[1741513708806,0.31461672,584.6,583.61,0.28648034]
[1741513709105,0.31461672,584.59,583.62,0.28648034]
[1741513709301,0.31461672,584.58,583.63,0.28648034]
[1741513709506,0.31461672,584.57,583.64,0.28648034]
[1741513709701,0.31461672,584.59,583.58,0.28648034]
[1741513712007,0.29796817,584.6,583.57,0.34271809]
[1741513712208,0.31461497,584.59,583.58,0.28646101]
[1741513715209,0.61258824,584.58,583.58,0.28646101]
[1741513715608,0.29797327,584.58,583.58,0.28646101]
[1741513715810,0.3146476,584.57,583.58,0.28646101]
[1741513718210,0.61264894,584.56,583.58,0.28646101]
[1741513718513,0.3146476,584.55,583.58,0.28646101]
[1741513719505,0.29800134,584.56,583.57,0.34271809]
[1741513723915,0.34206745,584.68,583.57,0.34271809]
[1741513724216,0.2980141,584.55,583.57,0.34271809]
[1741513724516,0.34206745,584.68,583.57,0.34271809]
[1741513724821,0.31468581,584.67,583.57,0.34271809]
[1741513725118,0.65675911,584.67,583.57,0.34271809]
[1741513725315,0.61270246,584.66,583.57,0.34271809]
[1741513725611,0.65677081,584.65,583.57,0.34271809]
[1741513725815,0.65677666,584.64,583.57,0.34271809]
[1741513726117,0.31468581,584.63,583.57,0.34271809]
[1741513726314,0.31472227,584.62,583.57,0.34271809]
[1741513726514,0.31472227,584.63,583.57,0.34271809]
[1741513726715,0.31472227,584.62,583.57,0.34271809]
[1741513726910,0.31472227,584.63,583.57,0.34271809]
[1741513727117,0.29803707,584.61,583.57,0.34271809]
[1741513727417,0.31472573,584.6,583.57,0.34271809]
[1741513729816,0.29803707,584.61,583.57,0.34271809]
[1741513730017,0.31472382,584.59,583.57,0.34271809]
[1741513730318,0.31472382,584.58,583.57,0.34271809]
[1741513731111,0.31471063,584.57,583.57,0.34271809]
[1741513731314,0.31471063,584.58,583.57,0.34271809]
[1741513731512,0.31471063,584.57,583.57,0.34271809]
[1741513731816,0.31471063,584.56,583.57,0.34271809]
[1741513732013,0.31471063,584.58,583.57,0.34271809]
[1741513732212,0.31471063,584.57,583.57,0.34271809]
[1741513732417,0.31471063,584.58,583.57,0.34271809]
[1741513732611,0.31471063,584.57,583.57,0.34271809]
[1741513732812,0.31471063,584.58,583.57,0.34271809]
[1741513733118,0.31471063,584.57,583.57,0.34271809]
[1741513733318,0.29805111,584.56,583.57,0.34271809]
[1741513733517,0.31470912,584.55,583.57,0.34271809]
[1741513735113,0.29805111,584.56,583.57,0.34271809]
[1741513735314,0.31470692,584.55,583.58,0.2870532]
[1741513736120,0.31470692,584.6,583.57,0.34271809]
[1741513736316,0.2980243,584.54,583.57,0.34271809]
[1741513736619,0.31470692,584.53,583.58,0.28703537]
[1741513737020,0.31470692,584.53,583.57,0.34271809]
[1741513737218,0.31470692,584.53,583.58,0.2870002]
[1741513737821,0.31470692,584.53,583.57,0.34271809]
[1741513738016,0.31470692,584.53,583.58,0.28698993]
[1741513738219,0.31470692,584.53,583.57,0.34271809]
[1741513738819,0.2980243,584.54,583.57,0.34271809]
[1741513739019,0.3146879,584.53,583.57,0.34271809]
[1741513739220,0.3146879,584.52,583.57,0.34271809]
[1741513739519,0.29803834,584.53,583.57,0.34271809]
[1741513739716,0.31468085,584.52,583.57,0.34271809]
[1741513740121,0.29803834,584.53,583.57,0.34271809]
[1741513740919,0.31467914,584.52,583.57,0.34271809]
[1741513741924,0.34210841,584.61,583.57,0.34271809]
[1741513742227,0.29801665,584.51,583.58,0.28703712]
[1741513742425,0.34210841,584.61,583.58,0.28703712]
[1741513742619,0.31464835,584.6,583.58,0.28703712]
[1741513743125,0.2979771,584.59,583.58,0.28703712]
[1741513744626,0.31463012,584.58,583.58,0.28703712]
[1741513745226,0.34210841,584.61,583.57,0.34271809]
[1741513745429,0.31462192,584.6,583.58,0.28719177]
[1741513746129,0.2979771,584.59,583.58,0.28719177]
[1741513746329,0.31462192,584.58,583.58,0.28719177]
[1741513746923,0.2979771,584.59,583.57,0.34271809]
[1741513747126,0.31461769,584.58,583.59,0.28717468]
[1741513747327,0.31461769,584.58,583.6,0.28717468]
[1741513747528,0.31461769,584.58,583.58,0.28717468]
[1741513747726,0.31461769,584.58,583.59,0.28717468]
[1741513747926,0.31461769,584.58,583.58,0.28717468]
[1741513748133,0.31461769,584.6,583.59,0.28717468]
[1741513748332,0.31461769,584.59,583.58,0.28717468]
[1741513748532,0.31461769,584.6,583.59,0.28717468]
[1741513748734,0.31461769,584.59,583.58,0.28717468]
[1741513748933,0.31461769,584.6,583.59,0.28717468]
[1741513749131,0.61259479,584.59,583.58,0.28717468]
[1741513749434,0.31461769,584.58,583.59,0.28717468]
[1741513749630,0.31461769,584.58,583.6,0.28717468]
[1741513749828,0.31461769,584.58,583.58,0.28717468]
[1741513750032,0.31461769,584.58,583.59,0.28717468]
[1741513750228,0.31461769,584.58,583.58,0.28717468]
[1741513750430,0.31461769,584.58,583.59,0.28717468]
[1741513750629,0.31465138,584.57,583.6,0.28725823]
[1741513750833,0.31465138,584.56,583.61,0.28725823]
[1741513751031,0.31465138,584.55,583.62,0.28725823]
[1741513751230,0.31465138,584.58,583.58,0.28725823]
[1741513751435,0.31465138,584.57,583.59,0.28725823]
[1741513751628,0.31465138,584.58,583.58,0.28725823]
[1741513751827,0.31465138,584.57,583.59,0.28725823]
[1741513752031,0.31465138,584.58,583.58,0.28725823]
[1741513752231,0.31465138,584.58,583.57,0.34271809]
[1741513752232,0.31465138,584.57,583.59,0.28725823]
[1741513752627,0.31465138,584.56,583.6,0.28725823]
[1741513752832,0.31465138,584.58,583.58,0.28725823]
[1741513753033,0.31465138,584.57,583.59,0.28725823]
[1741513753236,0.31465138,584.58,583.58,0.28725823]
[1741513754130,0.31465138,584.6,583.58,0.28725823]
[1741513754328,0.31463405,584.59,583.59,0.28720491]
[1741513754528,0.31463405,584.6,583.58,0.28720491]
[1741513754832,0.34210841,584.61,583.57,0.34271809]
[1741513754833,0.31463405,584.59,583.59,0.28720491]
[1741513755029,0.34210841,584.61,583.58,0.28720491]
[1741513755030,0.31463405,584.6,583.58,0.28720491]
[1741513755333,0.6126239,584.59,583.59,0.28720491]
[1741513755528,0.31463405,584.58,583.6,0.28720491]
[1741513755734,0.31463405,584.58,583.61,0.28720491]
[1741513755936,0.31463405,584.58,583.58,0.28720491]
[1741513756131,0.31463405,584.58,583.59,0.28720491]
[1741513756329,0.31463405,584.58,583.58,0.28720491]
[1741513756529,0.31463405,584.58,583.59,0.28720491]
[1741513756732,0.31463405,584.58,583.58,0.28720491]
[1741513756930,0.31463405,584.58,583.59,0.28720491]
[1741513757135,0.31463405,584.6,583.58,0.28720491]
[1741513757336,0.31463405,584.59,583.59,0.28720491]
[1741513757536,0.31463405,584.6,583.58,0.28720491]
[1741513757736,0.31463405,584.59,583.59,0.28720491]
[1741513757937,0.31463405,584.58,583.6,0.28720491]
[1741513758139,0.29796944,584.59,583.58,0.28720491]
[1741513758341,0.31463405,584.58,583.59,0.28720491]
[1741513758640,0.29796944,584.59,583.6,0.28720491]
[1741513758840,0.29796944,584.59,583.58,0.28720491]
[1741513759039,0.29796944,584.59,583.59,0.28720491]
[1741513759335,0.29796944,584.59,583.6,0.28720491]
[1741513759538,0.29796944,584.59,583.57,0.34271809]
[1741513759739,0.29796944,584.59,583.58,0.28699904]
[1741513759933,0.34210841,584.61,583.58,0.28699904]
[1741513760134,0.31459486,584.6,583.58,0.28699904]
[1741513761140,0.29796944,584.59,583.58,0.28699904]
[1741513762142,0.31459486,584.58,583.58,0.28699904]
[1741513763039,0.34210841,584.61,583.58,0.28699904]
[1741513763237,0.31459494,584.6,583.58,0.28699904]
[1741513764141,0.29796944,584.59,583.59,0.34270635]
[1741513764340,0.29796944,584.59,583.6,0.28699904]
[1741513764537,0.29796944,584.59,583.61,0.3426946]
[1741513764741,0.29796944,584.59,583.62,0.28699904]
[1741513765834,0.34210841,584.61,583.62,0.28699904]
[1741513766138,0.31459332,584.6,583.62,0.28699904]
[1741513766536,0.34210841,584.61,583.63,0.28701126]
[1741513766736,0.31459012,584.6,583.64,0.28701126]
[1741513766937,0.31459012,584.6,583.65,0.28701126]
[1741513767137,0.29794903,584.59,583.62,0.28701126]
[1741513767444,0.31459012,584.58,583.63,0.28701126]
[1741513767643,0.31459012,584.58,583.62,0.28701126]
[1741513767942,0.31459012,584.58,583.61,0.3426946]
[1741513767943,0.31459012,584.58,583.63,0.28701126]
[1741513768140,0.31459012,584.58,583.62,0.28701126]
[1741513769239,0.31459012,584.6,583.62,0.28701126]
[1741513769439,0.31459012,584.59,583.62,0.28701126]
[1741513769641,0.31459012,584.58,583.62,0.28701126]
[1741513769842,0.31459012,584.6,583.62,0.28701126]
[1741513770042,0.29794903,584.57,583.62,0.28701126]
[1741513770238,0.31459012,584.56,583.62,0.28701126]
[1741513771843,0.29794903,584.57,583.61,0.3426946]
[1741513772043,0.31460031,584.56,583.62,0.28704612]
[1741513772238,0.31460031,584.6,583.62,0.28704612]
[1741513772444,0.31460031,584.59,583.62,0.28704612]
[1741513772641,0.31460031,584.58,583.62,0.28704612]
[1741513772842,0.31460031,584.57,583.62,0.28704612]
[1741513773042,0.29794903,584.57,583.62,0.28704612]
[1741513773238,0.31460031,584.56,583.62,0.28704612]
[1741513775242,0.31460031,584.6,583.62,0.28704612]
[1741513775446,0.34210841,584.61,583.62,0.28704612]
[1741513775646,0.29794903,584.55,583.62,0.28704612]
[1741513777346,0.3146137,584.54,583.62,0.28704612]
[1741513778141,0.3146137,584.6,583.62,0.28704612]
[1741513778346,0.29795668,584.53,583.62,0.28704612]
[1741513778546,0.34210841,584.61,583.62,0.28704612]
[1741513778742,0.31460808,584.6,583.62,0.28704612]
[1741513779449,0.29796434,584.59,583.62,0.28704612]
[1741513779646,0.31460808,584.58,583.62,0.28704612]
[1741513780745,0.29796434,584.59,583.62,0.28704612]
[1741513780944,0.34210841,584.61,583.62,0.28704612]
[1741513781145,0.29794903,584.58,583.62,0.28704612]
[1741513783149,0.3146102,584.57,583.62,0.28704612]
[1741513784249,0.34210841,584.61,583.62,0.28704612]
[1741513784445,0.31460634,584.6,583.62,0.28704612]
[1741513785245,0.29796434,584.59,583.62,0.28704612]
[1741513785445,0.31460634,584.58,583.62,0.28704612]
[1741513787152,0.29796434,584.59,583.62,0.28704612]
[1741513787950,0.29796434,584.59,583.61,0.3426946]
[1741513788152,0.29796434,584.59,583.62,0.28693834]
[1741513789654,0.29796434,584.59,583.61,0.3426946]
[1741513789956,0.34210841,584.61,583.62,0.28693641]
[1741513791157,0.29795286,584.6,583.62,0.28693641]
[1741513794365,0.29795286,584.6,583.63,0.28685813]
[1741513794563,0.29795286,584.6,583.61,0.3426946]
[1741513794564,0.29795286,584.6,583.62,0.28685813]
[1741513794760,0.29795286,584.6,583.63,0.28685813]
[1741513794964,0.29795286,584.6,583.61,0.3426946]
[1741513794965,0.29795286,584.6,583.64,0.28685813]
[1741513795166,0.29795286,584.6,583.62,0.28685813]
[1741513795361,0.29795286,584.6,583.63,0.28685813]
[1741513795564,0.29795286,584.6,583.62,0.28685813]
[1741513795866,0.29795286,584.6,583.61,0.3426946]
[1741513796168,0.34210841,584.61,583.62,0.2867733]
[1741513797166,0.29792352,584.6,583.62,0.2867733]
[1741513799068,0.34210841,584.61,583.62,0.2867733]
[1741513799264,0.29794903,584.59,583.62,0.2867733]
[1741513800966,0.29794903,584.59,583.61,0.3426946]
[1741513801168,0.29794903,584.59,583.62,0.28682078]
[1741513802473,0.29794903,584.59,583.63,0.28678878]
[1741513802873,0.29794903,584.59,583.64,0.28678878]
[1741513803175,0.29794903,584.59,583.65,0.28678878]
[1741513803366,0.29794903,584.59,583.62,0.28678878]
[1741513803571,0.29794903,584.59,583.63,0.28678878]